bitfinex/quotes_ETHUSD_20250730
["timestamp","ask_amount","ask_price","bid_price","bid_amount"]
[1753899097752,1.7298,3817.4,3816.3,0.001]
[1753899097946,0.17318,3817.3,3816.3,0.001]
[1753899098266,0.17318,3817.3,3816.3,3.001]
[1753899098460,0.002,3817.1,3816.3,0.001]
[1753899098779,0.55,3816.8,3816.3,0.001]
[1753899099112,0.55,3816.5,3816.3,0.001]
[1753899099393,1.13821,3816.7,3816.3,0.001]
[1753899099394,1.3279,3816.4,3816.3,0.001]
[1753899099603,2.2417,3816.4,3816.3,0.001]
[1753899099961,0.7779,3816.4,3816.3,0.001]
[1753899100352,1.2415,3816.4,3816.3,0.001]
[1753899100858,1.6917,3816.4,3816.3,0.001]
[1753899101256,1.86087,3816.4,3816.3,0.001]
[1753899101989,2.41087,3816.4,3816.3,0.001]
[1753899102554,5.03114041,3816.4,3816.3,0.001]
[1753899102757,2.41087,3816.4,3816.3,0.001]
[1753899104804,5.41087,3816.4,3816.3,0.001]
[1753899105005,5.03114041,3816.4,3816.3,0.001]
[1753899105301,1.86087,3816.4,3816.3,0.001]
[1753899105508,5.41087,3816.4,3816.3,0.001]
[1753899107607,4.96067,3816.4,3816.3,0.001]
[1753899107812,8.78167,3816.4,3816.3,0.001]
[1753899108115,0.7931,3817.0,3816.3,0.001]
[1753899108312,0.951,3816.8,3816.3,0.001]
[1753899108698,0.951,3816.7,3816.3,0.001]
[1753899108870,0.8162,3816.6,3816.3,0.001]
[1753899109066,0.55,3816.5,3816.3,0.001]
[1753899109309,0.78172,3816.4,3816.3,0.001]
[1753899111288,0.55,3816.5,3816.3,0.001]
[1753899114500,5.871,3816.4,3816.3,0.001]
[1753899114689,9.6595,3816.4,3816.3,0.001]
[1753899115194,9.7907,3816.4,3816.3,0.001]
[1753899115611,12.41097041,3816.4,3816.3,0.001]
[1753899115816,44.44621579,3816.4,3816.3,0.001]
[1753899116216,44.57887996,3816.4,3816.3,0.001]
[1753899116415,11.82594538,3816.4,3816.3,0.001]
[1753899116607,8.8397,3816.4,3816.3,0.001]
[1753899117936,9.3033,3816.4,3816.3,0.001]
[1753899118250,42.41097041,3816.4,3816.3,0.001]
[1753899120324,3.17040773,3816.2,3815.7,0.001]
[1753899120525,44.11216578,3815.8,3815.7,0.001]
[1753899120750,49.44116578,3815.8,3815.7,0.001]
[1753899120951,42.45068242,3815.8,3815.7,0.001]
[1753899121415,8.878,3815.8,3815.7,0.001]
[1753899121617,42.44968242,3815.8,3815.7,0.001]
[1753899121855,3.94629456,3815.2,3815.1,0.04]
[1753899122151,41.44649456,3815.2,3815.1,0.04]
[1753899122357,42.39749456,3815.2,3815.1,0.04]
[1753899123628,0.7516,3814.7,3814.1,0.04]
[1753899123884,1.4328,3814.2,3814.1,0.04]
[1753899124025,6.24408,3814.2,3814.1,0.04]
[1753899125293,42.81686176,3814.2,3814.1,0.04]
[1753899126284,42.32946176,3814.2,3814.1,0.04]
[1753899126430,42.81686176,3814.2,3814.1,0.04]
[1753899126953,9.24408,3814.2,3814.1,0.04]
[1753899127153,41.86586176,3814.2,3814.1,0.04]
[1753899127354,42.81686176,3814.2,3814.1,0.04]
[1753899128167,39.24408,3814.2,3814.1,0.04]
[1753899128368,34.87608,3814.2,3814.1,0.04]
[1753899128536,9.24508,3814.2,3814.1,0.04]
[1753899128732,9.70868,3814.2,3814.1,0.04]
[1753899130094,12.81786176,3814.2,3814.1,0.04]
[1753899130253,4.87608,3814.2,3814.1,0.04]
[1753899130458,0.8828,3814.2,3814.1,0.5291]
[1753899130756,4.4992,3814.2,3814.1,0.996]
[1753899131157,4.4992,3814.2,3814.1,0.04]
[1753899131484,0.1312,3814.2,3814.1,0.996]
[1753899131644,4.5002,3814.2,3814.1,0.996]
[1753899131980,4.368,3814.5,3814.1,0.996]
[1753899132179,0.1312,3814.4,3814.2,0.956]
[1753899132353,4.368,3814.5,3814.3,0.956]
[1753899132553,4.368,3814.5,3814.4,0.4891]
[1753899133070,4.4992,3814.5,3814.1,0.04]
[1753899133379,4.368,3814.5,3814.2,0.956]
[1753899133578,4.368,3814.5,3814.3,0.4891]
[1753899133782,4.8048,3814.5,3814.3,0.4891]
[1753899133968,0.1312,3814.4,3814.3,0.4891]
[1753899134788,0.1312,3814.4,3814.1,0.04]
[1753899135085,4.8048,3814.5,3814.1,0.04]
[1753899135086,0.1312,3814.2,3814.1,0.04]
[1753899135285,0.8146,3815.4,3814.1,0.8459]
[1753899135455,0.1312,3814.4,3814.1,0.8459]
[1753899135784,0.1312,3814.4,3814.2,0.956]
[1753899136288,4.367,3814.6,3814.3,0.956]
[1753899136289,0.1312,3814.5,3814.3,0.956]
[1753899136601,0.1312,3814.5,3814.4,0.956]
[1753899138102,4.367,3814.6,3814.4,0.956]
[1753899138283,4.4982,3814.6,3814.1,0.8459]
[1753899138467,0.1312,3814.6,3814.5,0.9279]
[1753899140084,4.367,3814.9,3814.5,0.9279]
[1753899140281,0.1312,3814.7,3814.5,0.9279]
[1753899140483,0.1312,3814.7,3814.6,0.9279]
[1753899140760,4.367,3814.9,3814.6,0.4874]
[1753899140979,0.1312,3814.7,3814.4,0.001]
[1753899141299,0.1312,3814.5,3814.4,0.001]
[1753899141703,0.1312,3814.5,3814.4,0.4884]
[1753899141904,0.1312,3814.5,3814.4,0.9289]
[1753899142068,0.1312,3814.7,3814.4,0.9289]
[1753899142261,0.1312,3814.7,3814.4,0.001]
[1753899142492,0.1312,3814.7,3814.5,0.9279]
[1753899142698,0.1312,3814.7,3814.6,0.9279]
[1753899143096,0.1312,3814.7,3814.6,3.10890684]
[1753899143293,0.24478891,3815.6,3814.6,1.7445]
[1753899143595,0.24483297,3815.5,3814.7,0.9279]
[1753899143799,0.24483297,3815.5,3814.4,0.02721644]
[1753899143800,0.24483297,3815.5,3815.2,0.7663]
[1753899143990,0.24483297,3815.4,3815.3,3.54888101]
[1753899144172,0.002,3815.7,3815.6,2.62081979]
[1753899144504,0.002,3816.1,3816.0,2.62054507]
[1753899144666,0.002,3816.1,3816.0,6.47995052]
[1753899144997,0.002,3816.1,3816.0,7.38164507]
[1753899145416,0.002,3816.1,3816.0,1.7611]
[1753899145708,0.002,3816.1,3816.0,1.3206]
[1753899146007,0.002,3816.1,3815.7,0.4405]
[1753899146207,0.002,3816.1,3815.6,0.4874]
[1753899146208,0.002,3816.1,3815.8,0.9279]
[1753899146733,0.002,3816.1,3815.8,0.4405]
[1753899147017,0.002,3816.1,3815.5,0.7921]
[1753899147018,0.002,3816.1,3815.5,1.2795]
[1753899147691,0.002,3816.1,3815.6,0.9279]
[1753899148210,0.002,3816.1,3815.0,0.8093]
[1753899148211,3.7636,3815.9,3815.0,0.8093]
[1753899148416,0.81286,3815.8,3814.9,0.4874]
[1753899148787,0.81286,3815.8,3815.0,0.4405]
[1753899149117,0.81286,3815.8,3815.1,0.4874]
[1753899149814,0.24527552,3815.7,3815.1,0.4874]
[1753899150011,0.24528025,3815.6,3814.8,0.4874]
[1753899150212,0.24528025,3815.6,3814.6,0.8093]
[1753899150213,0.24528025,3815.5,3814.6,0.8093]
[1753899150413,0.24528025,3815.5,3814.6,1.2967]
[1753899150911,0.7723,3815.4,3814.6,1.2967]
[1753899151112,0.24530913,3815.3,3814.6,0.4874]
[1753899151429,0.24530913,3815.3,3814.7,0.9279]
[1753899151682,0.002,3816.1,3814.8,1.75521369]
[1753899151842,0.24535857,3815.9,3814.8,3.42245176]
[1753899152006,0.2453632,3815.8,3814.9,0.9279]
[1753899152212,0.2453632,3815.7,3814.9,0.4405]
[1753899152528,0.002,3816.1,3815.0,0.4874]
[1753899152706,0.24539636,3815.9,3815.0,0.4874]
[1753899152930,0.24539636,3815.9,3815.1,0.4405]
[1753899153105,0.002,3816.1,3815.3,2.62102262]
[1753899153293,0.002,3816.1,3815.4,0.9279]
[1753899153495,0.1312,3815.9,3815.5,0.4874]
[1753899153731,0.1312,3815.9,3815.3,0.6186]
[1753899154320,0.44962,3815.9,3815.3,0.4874]
[1753899154519,0.1312,3815.6,3815.3,0.4874]
[1753899154832,0.1312,3815.6,3815.1,0.1312]
[1753899155194,0.1312,3815.6,3815.2,0.4874]
[1753899155390,0.1312,3815.6,3815.3,0.4874]
[1753899155607,0.1312,3815.6,3815.1,0.1312]
[1753899156014,0.88302,3815.9,3814.8,1.4197]
[1753899156214,0.8311,3815.5,3814.5,0.4405]
[1753899156416,0.1312,3815.0,3814.5,0.4874]
[1753899156631,0.1312,3814.7,3814.4,0.001]
[1753899157013,0.1312,3814.5,3814.4,0.001]
[1753899157210,0.9631,3814.5,3814.4,0.001]
[1753899157408,8.06322556,3814.5,3814.4,0.001]
[1753899157935,33.93478176,3814.2,3814.1,0.04]
[1753899158134,41.29478176,3814.2,3814.1,0.04]
[1753899158449,42.21488176,3814.2,3814.1,0.04]
[1753899158599,42.16336461,3814.2,3814.1,0.04]
[1753899158793,44.78514637,3814.2,3814.1,0.04]
[1753899159720,42.16336461,3814.2,3814.1,0.04]
[1753899160123,44.78514637,3814.2,3814.1,0.04]
[1753899160529,12.16336461,3814.2,3814.1,0.04]
[1753899160739,5.2331,3814.2,3814.1,0.04]
[1753899160930,12.21488176,3814.2,3814.1,0.04]
[1753899161135,42.21488176,3814.2,3814.1,0.04]
[1753899162560,12.21488176,3814.2,3814.1,0.04]
[1753899162765,42.21488176,3814.2,3814.1,0.04]
[1753899162958,44.78514637,3814.2,3814.1,0.04]
[1753899163144,44.78514637,3814.2,3814.1,0.041]
[1753899163866,44.78514637,3814.2,3812.1,0.4805]
[1753899163867,36.9419505,3814.1,3812.1,0.4805]
[1753899164066,36.9419505,3814.1,3812.9,0.4874]
[1753899164067,41.3019505,3814.1,3812.9,0.4874]
[1753899164266,42.2220505,3814.1,3812.9,0.4874]
[1753899164578,44.79231511,3814.1,3812.6,0.4874]
[1753899165772,40.43231511,3814.1,3812.6,0.4874]
[1753899165947,44.79231511,3814.1,3813.1,0.5274]
[1753899166143,44.79231511,3814.1,3813.1,0.04]
[1753899167370,37.45496461,3814.1,3813.2,0.4831]
[1753899167678,44.43681511,3814.1,3813.2,0.4831]
[1753899167883,11.81496461,3814.1,3813.2,0.4831]
[1753899168090,8.26396461,3814.1,3813.6,0.4831]
[1753899168249,8.6937,3814.1,3813.6,0.4831]
[1753899168451,8.2603,3814.1,3813.6,0.4831]
[1753899168768,3.9013,3814.1,3813.6,0.4831]
[1753899168969,8.2603,3814.1,3813.6,0.4831]
[1753899169482,0.9013,3814.1,3813.6,0.4831]
[1753899169657,4.4892,3814.1,3814.0,0.9324]
[1753899170181,0.1312,3814.1,3814.0,0.9324]
[1753899170381,0.7537,3815.4,3814.0,0.9324]
[1753899170587,0.1312,3814.3,3814.0,0.4841]
[1753899170746,4.4892,3814.3,3814.1,0.9314]
[1753899170943,4.4892,3814.3,3814.2,0.4831]
[1753899171145,4.358,3814.3,3814.2,0.4831]
[1753899171378,4.4892,3814.3,3814.2,0.9314]
[1753899171778,4.4892,3814.3,3814.0,0.001]
[1753899171981,4.88366,3814.3,3814.1,0.4831]
[1753899172300,4.88366,3814.3,3814.2,0.4831]
[1753899172758,5.01486,3814.3,3814.2,0.4831]
[1753899173692,4.4892,3814.3,3814.2,0.9314]
[1753899175389,0.1312,3814.3,3814.2,0.9314]
[1753899175588,4.4882,3814.3,3814.2,0.9314]
[1753899176883,4.4872,3814.3,3814.2,0.9314]
[1753899177769,6.3,3815.2,3814.2,1.7354]
[1753899177957,0.1312,3815.0,3814.4,0.9352]
[1753899178157,4.4862,3815.0,3814.5,0.9314]
[1753899178360,4.4862,3815.0,3814.6,0.9314]
[1753899178579,0.8165,3815.9,3814.0,0.001]
[1753899178580,0.042,3815.9,3814.8,0.804]
[1753899178777,4.355,3815.8,3814.9,1.0626]
[1753899178968,0.1312,3815.6,3815.0,0.4831]
[1753899179156,0.1312,3815.6,3815.0,0.9314]
[1753899179357,0.1312,3815.6,3815.1,0.9314]
[1753899179602,0.1312,3815.6,3815.2,0.9314]
[1753899179754,0.1312,3815.6,3814.9,0.1312]
[1753899179958,0.1312,3815.6,3815.0,0.9314]
[1753899180158,0.1312,3815.6,3815.1,0.4831]
[1753899180359,4.355,3815.8,3815.1,0.4831]
[1753899180573,0.1312,3815.4,3815.1,0.4831]
[1753899180782,0.1312,3815.4,3814.9,0.1312]
[1753899180783,4.355,3815.8,3815.2,0.4483]
[1753899180996,4.355,3815.8,3815.1,0.4831]
[1753899181194,0.1312,3815.2,3815.1,0.4831]
[1753899181396,0.1312,3815.2,3814.8,0.804]
[1753899181397,4.4852,3815.2,3814.8,1.2871]
[1753899181598,4.4852,3815.2,3814.9,0.4831]
[1753899181599,4.354,3815.2,3814.9,0.4831]
[1753899181785,4.354,3815.2,3814.8,1.2523]
[1753899182106,4.354,3815.2,3815.0,0.4831]
[1753899182270,4.354,3815.2,3814.9,0.4483]
[1753899182471,0.1312,3815.0,3814.8,0.804]
[1753899182681,0.1312,3815.0,3814.9,0.4831]
[1753899182882,4.353,3815.2,3814.9,0.9314]
[1753899183093,4.353,3815.2,3815.0,0.4483]
[1753899183404,4.353,3815.2,3815.1,0.4831]
[1753899183576,4.353,3815.2,3815.1,0.9314]
[1753899184906,0.1312,3815.3,3815.1,0.9314]
[1753899185114,4.352,3815.6,3815.2,0.9314]
[1753899185268,4.4832,3815.6,3815.3,0.9314]
[1753899185605,4.4832,3815.6,3815.4,0.4831]
[1753899185906,4.4852,3815.6,3815.5,0.9314]
[1753899187813,0.1332,3815.6,3815.5,0.9314]
[1753899187982,0.002,3815.6,3815.5,1.7481]
[1753899189275,0.002,3815.6,3815.5,0.8167]
[1753899189484,0.002,3815.6,3815.5,0.4831]
[1753899190879,0.002,3815.6,3815.5,0.9314]
[1753899191476,0.002,3815.6,3815.5,0.4831]
[1753899191710,0.45452,3815.6,3815.1,0.8304]
[1753899191914,0.45452,3815.6,3814.0,0.001]
[1753899191915,0.4731,3815.5,3814.7,0.7898]
[1753899192209,0.1312,3815.1,3814.4,0.4831]
[1753899192383,0.1312,3814.6,3814.4,0.4831]
[1753899193298,0.1312,3814.6,3814.5,0.4831]
[1753899193470,0.1312,3814.6,3814.5,0.9314]
[1753899193666,0.1312,3814.6,3814.1,0.1312]
[1753899193882,0.1312,3814.6,3814.3,0.4831]
[1753899194097,0.1312,3814.6,3814.4,0.4483]
[1753899194302,4.347,3815.1,3814.4,0.4483]
[1753899194501,0.1312,3815.2,3814.5,1.4041]
[1753899194773,0.1312,3815.3,3814.7,0.1312]
[1753899194985,0.002,3815.6,3814.8,0.9314]
[1753899195194,0.1332,3815.6,3815.1,0.1312]
[1753899195609,0.1332,3815.6,3815.2,0.4831]
[1753899195830,0.1332,3815.6,3815.3,1.2381]
[1753899196173,0.1332,3815.6,3815.4,0.4831]
[1753899196614,0.1332,3815.6,3815.5,0.4668]
[1753899196824,0.1332,3815.6,3815.5,0.9248]
[1753899197033,0.002,3815.6,3815.5,0.9248]
[1753899197418,0.002,3815.6,3815.5,0.4668]
[1753899201633,0.002,3815.6,3815.5,0.9248]
[1753899201857,0.002,3815.6,3815.5,0.4668]
[1753899202062,0.002,3815.6,3815.5,0.9248]
[1753899202356,0.002,3815.6,3815.5,0.95100888]
[1753899202557,0.002,3815.6,3815.5,4.51479736]
[1753899202718,0.002,3815.6,3815.5,1.89390888]
[1753899202918,0.002,3815.6,3815.5,4.51479736]
[1753899203159,0.002,3815.6,3815.5,1.8677]
[1753899203317,0.002,3815.6,3815.5,4.51479736]
[1753899203917,0.002,3815.6,3815.5,4.48858848]
[1753899204355,0.002,3815.6,3815.5,4.51479736]
[1753899204831,0.002,3815.6,3815.5,5.03858848]
[1753899206168,0.002,3815.6,3815.2,0.4668]
[1753899206319,0.002,3815.6,3815.4,0.4668]
[1753899206518,0.002,3815.6,3815.5,3.54039736]
[1753899207040,0.002,3815.6,3815.5,4.46519736]
[1753899207436,0.002,3815.6,3815.5,4.43898848]
[1753899208630,0.002,3815.6,3815.5,4.98898848]
[1753899209018,0.002,3815.6,3815.5,3.98098848]
[1753899209218,0.002,3815.6,3815.5,1.3601]
[1753899209438,0.002,3815.6,3815.5,4.43898848]
[1753899209635,0.002,3815.6,3815.5,5.01519736]
[1753899210346,0.002,3815.6,3815.5,4.98898848]
[1753899211341,0.002,3815.6,3815.5,5.6991]
[1753899211539,0.4593,3815.6,3814.7,0.8309]
[1753899211757,0.8183,3815.5,3814.2,0.8309]
[1753899211959,0.8183,3815.5,3814.0,0.001]
[1753899211960,0.1312,3815.1,3814.6,0.1312]
[1753899212159,0.9376,3815.0,3814.0,0.001]
[1753899212376,0.1312,3814.8,3814.3,0.1312]
[1753899212678,4.97109,3815.4,3814.4,0.4668]
[1753899212854,0.17579,3815.4,3814.4,0.9248]
[1753899213069,0.17579,3815.4,3814.9,0.1312]
[1753899213576,8.3166,3815.9,3814.9,0.7878]
[1753899213778,0.1332,3815.6,3815.1,0.1312]
[1753899213940,0.002,3815.6,3815.1,0.1312]
[1753899214146,0.002,3815.6,3815.2,0.4668]
[1753899214543,0.002,3815.6,3815.2,0.1312]
[1753899214741,1.0688,3815.5,3814.9,0.1312]
[1753899214937,0.1312,3815.1,3814.1,0.7878]
[1753899215141,0.9376,3815.0,3814.3,0.1312]
[1753899215341,0.1312,3814.8,3814.3,0.1312]
[1753899215552,1.241,3815.4,3814.4,0.4668]
[1753899215749,0.1312,3815.0,3814.4,0.4668]
[1753899216036,0.1312,3815.0,3814.3,0.1312]
[1753899217963,0.1312,3815.0,3814.4,0.49301644]
[1753899218136,0.7607,3815.4,3814.6,0.7513]
[1753899218555,0.002,3815.6,3814.7,0.4668]
[1753899218756,0.002,3815.6,3814.7,0.9248]
[1753899219285,0.1312,3815.5,3814.9,0.1312]
[1753899219582,1.2367,3815.4,3814.0,2.62286783]
[1753899219792,0.6269,3815.3,3814.0,0.001]
[1753899220082,0.6269,3815.3,3814.2,2.62172278]
[1753899220378,0.6269,3815.3,3814.1,2.62185019]
[1753899220679,0.4573,3815.3,3814.4,2.62159832]
[1753899220882,0.7564,3815.4,3814.3,2.62168767]
[1753899221078,0.7564,3815.4,3814.5,0.4668]
[1753899221387,0.4573,3815.3,3814.2,1.2178]
[1753899221681,0.4573,3815.3,3814.2,3.83954922]
[1753899221852,0.4573,3815.3,3814.4,2.62163576]
[1753899222053,0.4573,3815.3,3814.5,2.6215704]
[1753899222255,0.4573,3815.3,3814.4,2.62162172]
[1753899222486,0.4573,3815.3,3814.3,3.54649352]
[1753899222653,0.4573,3815.3,3814.3,3.54647277]
[1753899222862,0.4573,3815.3,3814.3,0.9248]
[1753899223277,0.4573,3815.3,3814.3,3.54644559]
[1753899223645,0.4573,3815.3,3814.3,0.9248]
[1753899223846,0.4573,3815.3,3814.3,3.07970381]
[1753899224058,0.4573,3815.3,3814.4,0.4668]
[1753899225151,0.7564,3815.4,3814.5,3.07957556]
[1753899225562,0.7564,3815.4,3814.6,0.49301506]
[1753899225870,0.002,3815.6,3814.6,0.9248]
[1753899226070,0.002,3815.6,3814.7,2.62137206]
[1753899226378,0.002,3815.6,3814.7,3.08817206]
[1753899226580,0.002,3815.6,3814.8,0.9151]
[1753899226745,0.002,3815.6,3815.2,2.62105079]
[1753899226950,0.002,3815.6,3815.3,0.02621025]
[1753899227146,0.002,3815.6,3815.4,0.02620957]
[1753899227349,0.002,3815.6,3815.5,2.62088848]
[1753899227594,0.02864839,3815.9,3815.6,2.62080801]
[1753899227766,0.02864839,3815.9,3815.6,3.53590801]
[1753899227964,0.02864839,3815.9,3815.7,0.9151]
[1753899228386,0.02864839,3815.9,3815.7,0.4489]
[1753899228599,0.02864839,3815.9,3815.8,0.4662]
[1753899228888,0.02864839,3815.9,3815.1,3.07001321]
[1753899229059,0.778,3815.7,3814.8,0.4662]
[1753899229264,0.778,3815.7,3814.8,3.08756684]
[1753899229463,0.778,3815.7,3815.3,0.1312]
[1753899231753,0.1312,3815.8,3815.4,0.4662]
[1753899231951,0.03064839,3815.9,3815.5,0.4662]
[1753899232292,0.03064839,3815.9,3815.6,2.62076088]
[1753899232494,0.03064839,3815.9,3815.5,0.9151]
[1753899232495,0.03064839,3815.9,3815.7,0.1312]
[1753899232694,0.03064839,3815.9,3815.7,2.75194848]
[1753899232991,0.03064839,3815.9,3815.8,0.9151]
[1753899233193,0.03064839,3815.9,3815.8,3.53578242]
[1753899233974,0.03064839,3815.9,3815.7,0.1312]
[1753899234692,0.03064839,3815.9,3815.8,0.9151]
[1753899234898,0.03064839,3815.9,3815.7,0.1312]
[1753899235284,0.03064839,3815.9,3815.8,0.4662]
[1753899235608,0.03064839,3815.9,3815.8,3.53578242]
[1753899236416,0.03064839,3815.9,3815.8,0.9151]
[1753899236699,0.03064839,3815.9,3815.7,0.1312]
[1753899236908,0.03064839,3815.9,3815.3,3.0]
[1753899236909,0.03064839,3815.9,3815.3,4.326]
[1753899237062,0.81414839,3815.9,3815.7,0.1312]
[1753899237872,0.03064839,3815.9,3815.7,0.1312]
[1753899238499,0.03064839,3815.9,3815.5,0.1312]
[1753899239163,0.03064839,3815.9,3815.6,0.4662]
[1753899239562,0.03064839,3815.9,3815.5,0.1312]
[1753899240468,0.1312,3815.6,3815.0,0.1312]
[1753899241005,0.1312,3815.6,3815.0,0.5974]
[1753899242600,0.03064839,3815.9,3814.3,3.08789928]
[1753899242601,0.7948,3815.5,3814.3,3.08789928]
[1753899242799,0.1312,3815.3,3814.8,0.1312]
[1753899242978,0.4287,3815.2,3814.8,0.1312]
[1753899243414,0.4287,3815.2,3814.3,3.0]
[1753899243612,0.4287,3815.2,3814.7,0.1312]
[1753899244414,0.1312,3815.3,3814.7,0.1312]
[1753899245012,0.7948,3815.5,3814.8,0.94131369]
[1753899245312,0.926,3815.5,3814.9,0.5974]
[1753899246951,0.926,3815.5,3814.9,0.1312]
[1753899247265,0.1312,3815.0,3814.5,0.1312]
[1753899247752,0.1312,3815.3,3814.6,0.9151]
[1753899247955,0.1312,3815.3,3814.7,0.5974]
[1753899248121,0.926,3815.5,3815.0,0.1312]
[1753899248523,0.926,3815.5,3815.1,0.4662]
[1753899248763,0.926,3815.5,3815.0,0.1312]
[1753899249131,1.3547,3815.5,3815.0,0.1312]
[1753899249732,0.9086,3815.4,3815.0,0.1312]
[1753899249963,0.1312,3815.1,3814.3,0.4662]
[1753899250167,0.4287,3815.1,3814.1,0.001]
[1753899250325,0.1312,3814.8,3814.2,0.1312]
[1753899250868,0.4287,3814.8,3814.1,0.1322]
[1753899251035,0.1312,3814.6,3814.1,0.1322]
[1753899251359,0.5599,3814.6,3814.1,0.1322]
[1753899251857,0.7657,3814.5,3814.1,0.1322]
[1753899252070,0.1312,3814.3,3814.1,0.001]
[1753899254323,0.4287,3814.2,3814.1,0.001]
[1753899254687,1.6959,3814.2,3814.1,0.001]
[1753899254983,1.87861,3814.2,3814.1,0.001]
[1753899256181,38.18115812,3814.2,3814.1,0.001]
[1753899256736,38.38137052,3814.2,3814.1,0.001]
[1753899257144,38.38137052,3814.2,3813.8,0.001]
[1753899257145,3.44028799,3813.9,3813.8,0.001]
[1753899257464,5.62205674,3813.8,3813.7,0.001]
[1753899257787,46.5054057,3813.8,3813.7,0.001]
[1753899258127,38.56298554,3813.8,3813.7,0.001]
[1753899258865,42.87998554,3813.8,3813.7,0.001]
[1753899259242,5.62212549,3813.7,3813.6,0.001]
[1753899259580,40.6014901,3813.7,3813.6,0.001]
[1753899260327,3.17246931,3813.2,3812.1,0.04]
[1753899260540,0.55,3812.7,3812.1,0.04]
[1753899260750,0.1312,3812.2,3812.1,0.04]
[1753899262054,1.8505,3812.2,3812.1,0.04]
[1753899262351,4.66924603,3812.2,3812.1,0.04]
[1753899262543,8.98524603,3812.2,3812.1,0.04]
[1753899263066,9.45244603,3812.2,3812.1,0.04]
[1753899264154,39.91384603,3812.2,3812.1,0.04]
[1753899264466,42.53700326,3812.2,3812.1,0.04]
[1753899264671,39.91384603,3812.2,3812.1,0.04]
[1753899264850,9.91384603,3812.2,3812.1,0.04]
[1753899265028,39.91384603,3812.2,3812.1,0.04]
[1753899265428,40.46384603,3812.2,3812.1,0.04]
[1753899266300,40.46384603,3812.2,3811.1,0.04]
[1753899266301,32.62362427,3811.6,3811.1,0.04]
[1753899266455,0.7941,3811.2,3811.1,0.04]
[1753899266650,0.9253,3811.2,3811.1,0.04]
[1753899269793,1.3925,3811.2,3811.1,0.04]
[1753899269997,0.9253,3811.2,3811.1,0.04]
[1753899270975,1.3925,3811.2,3811.1,0.04]
[1753899271192,5.71278782,3811.2,3811.1,0.04]
[1753899271691,5.24558782,3811.2,3811.1,0.04]
[1753899271897,30.0,3811.0,3809.2,0.4749]
[1753899272194,0.8294,3810.2,3809.3,0.4749]
[1753899272392,38.8236,3810.2,3809.3,0.4749]
[1753899272597,39.2908,3810.2,3809.3,0.4749]
[1753899272922,34.4278,3810.2,3809.3,0.4749]
[1753899273217,33.9606,3810.2,3809.6,0.4749]
[1753899273423,41.86106461,3810.2,3809.3,0.9357]
[1753899273922,0.55,3809.6,3808.5,0.4749]
[1753899274093,3.0,3809.2,3808.5,0.4749]
[1753899274316,4.312,3809.2,3808.5,0.4749]
[1753899275319,4.312,3809.2,3808.2,0.4749]
[1753899275320,39.16,3809.2,3808.2,0.4749]
[1753899275535,41.73026461,3809.2,3808.2,0.4749]
[1753899275676,44.81688775,3809.2,3808.1,0.04]
[1753899276183,37.87966461,3809.2,3808.1,0.04]
[1753899276520,41.73026461,3809.2,3808.1,0.04]
[1753899276691,3.8014,3808.4,3808.1,0.04]
[1753899276892,3.0,3808.2,3808.1,0.04]
[1753899277156,36.1759125,3808.2,3808.1,0.04]
[1753899277339,3.55,3807.4,3807.1,0.04]
[1753899277486,33.55,3807.2,3807.1,0.04]
[1753899277684,3.55,3807.2,3807.1,0.04]
[1753899277898,34.46541,3807.2,3807.1,0.04]
[1753899278893,33.91541,3807.2,3807.1,0.04]
[1753899279098,3.91541,3807.2,3807.1,0.04]
[1753899279399,3.0,3807.2,3807.1,0.9757]
[1753899280221,4.312,3807.3,3807.1,0.9757]
[1753899280222,4.311,3807.3,3807.1,0.9757]
[1753899280422,4.311,3807.3,3807.1,0.04]
[1753899281214,4.311,3807.3,3807.2,0.9357]
[1753899283744,1.89332038,3808.2,3807.2,0.9357]
[1753899283908,0.1312,3807.4,3807.3,1.7097]
[1753899284109,0.1312,3807.9,3807.4,0.1312]
[1753899284337,4.311,3807.8,3807.5,0.9357]
[1753899284542,0.1312,3807.6,3807.3,0.774]
[1753899285143,4.311,3807.8,3807.4,0.9357]
[1753899285321,4.4422,3807.8,3807.5,0.9357]
[1753899285646,4.4422,3807.8,3807.6,0.9357]
[1753899285848,4.75522,3807.8,3807.2,0.9357]
[1753899286033,0.1312,3807.4,3807.2,0.9357]
[1753899286235,0.1312,3807.4,3807.1,0.04]
[1753899286236,4.31,3807.3,3807.1,0.04]
[1753899286435,0.1312,3807.2,3807.1,0.04]
[1753899287722,0.1312,3807.2,3807.1,0.9487]
[1753899288250,0.1312,3807.2,3807.1,0.5176]
[1753899288624,0.57532,3807.2,3807.1,0.04]
[1753899288826,3.57532,3807.2,3807.1,0.04]
[1753899289033,4.38502,3807.2,3807.1,0.04]
[1753899291061,35.88842,3807.2,3807.1,0.04]
[1753899292720,35.40202,3807.2,3807.1,0.04]
[1753899292924,4.93502,3807.2,3807.1,0.04]
[1753899293421,4.38502,3807.2,3807.1,0.04]
[1753899295157,34.38502,3807.2,3807.1,0.04]
[1753899295474,4.38502,3807.2,3807.1,0.04]
[1753899296681,4.38502,3807.2,3807.1,0.041]